bitfinex-derivatives/quotes_BTCF0:USTF0_20250626
["timestamp","ask_amount","ask_price","bid_price","bid_amount"]
[1750901679425,1.81585237,107770.0,107760.0,0.1874992]
[1750901680132,1.81585237,107770.0,107760.0,0.1894992]
[1750901680827,1.81585237,107770.0,107760.0,0.004]
[1750901682730,0.77017047,107770.0,107760.0,0.1894992]
[1750901682924,1.81033247,107770.0,107760.0,0.1894992]
[1750901684433,1.99592447,107770.0,107760.0,0.004]
[1750901685432,1.99592447,107770.0,107760.0,0.51807478]
[1750901685433,1.80593237,107770.0,107760.0,0.51807478]
[1750901685734,1.80593237,107770.0,107760.0,0.33257558]
[1750901686232,1.80593237,107770.0,107760.0,0.004]
[1750901686638,1.80593237,107770.0,107760.0,0.1894992]
[1750901686933,1.80593237,107770.0,107760.0,0.004]
[1750901687232,1.80593237,107770.0,107760.0,0.1894992]
[1750901687432,1.80593237,107770.0,107760.0,0.004]
[1750901688132,0.95565237,107770.0,107760.0,0.004]
[1750901689028,1.14124437,107770.0,107760.0,0.004]
[1750901689234,0.1855164,107750.0,107740.0,0.00092812]
[1750901689428,2.14208497,107750.0,107740.0,0.00055634]
[1750901689638,2.39100897,107750.0,107740.0,0.00055634]
[1750901691342,2.39100897,107750.0,107740.0,0.52266552]
[1750901691343,1.29380497,107750.0,107740.0,0.52266552]
[1750901691529,2.14092497,107750.0,107740.0,0.25748994]
[1750901691728,2.14092497,107750.0,107740.0,0.58606552]
[1750901692233,0.17668857,107750.0,107740.0,0.58606552]
[1750901692433,0.17668857,107750.0,107740.0,0.61896552]
[1750901692642,0.53748857,107750.0,107740.0,0.72896552]
[1750901692830,0.53748857,107750.0,107740.0,0.61896552]
[1750901693342,0.72300497,107750.0,107740.0,0.61896552]
[1750901694541,1.93178897,107750.0,107740.0,0.00855634]
[1750901694727,1.99378897,107750.0,107740.0,0.00855634]
[1750901695035,2.02378897,107750.0,107740.0,0.00855634]
[1750901695438,0.89300497,107750.0,107740.0,0.00855634]
[1750901695638,0.89300497,107750.0,107740.0,0.58136552]
[1750901695836,0.70748857,107750.0,107740.0,0.57936552]
[1750901696035,0.89300467,107750.0,107740.0,0.61366552]
[1750901696337,0.70748857,107750.0,107740.0,0.61366552]
[1750901697040,0.89300467,107750.0,107740.0,0.61366552]
[1750901697337,0.89300467,107750.0,107740.0,0.28408994]
[1750901697538,0.89300467,107750.0,107740.0,0.61466552]
[1750901697740,0.89300467,107750.0,107740.0,0.61666552]
[1750901698135,0.10668857,107750.0,107740.0,0.61666552]
[1750901698330,0.29220467,107750.0,107740.0,0.61666552]
[1750901698532,0.10668857,107750.0,107740.0,0.97746552]
[1750901699139,0.29220467,107750.0,107740.0,0.97746552]
[1750901699340,0.29220467,107750.0,107740.0,0.28808994]
[1750901699643,0.29220467,107750.0,107740.0,0.61666552]
[1750901699842,0.29220467,107750.0,107740.0,0.28808994]
[1750901700043,0.29220467,107750.0,107740.0,0.61666552]
[1750901700247,0.10668857,107750.0,107740.0,0.61666552]
[1750901701044,0.56326027,107770.0,107760.0,0.1854989]
[1750901701233,0.72288849,107770.0,107760.0,0.1854989]
[1750901701438,0.88288849,107770.0,107760.0,0.0306]
[1750901701633,0.88288849,107770.0,107750.0,0.01498164]
[1750901701634,0.1854989,107760.0,107750.0,0.01498164]
[1750901701849,0.1855161,107750.0,107740.0,0.32996094]
[1750901702043,0.7663161,107750.0,107740.0,0.09805634]
[1750901702249,1.15699168,107750.0,107740.0,0.00355634]
[1750901702445,1.15699168,107750.0,107740.0,0.00055634]
[1750901702446,2.03319168,107750.0,107740.0,0.00055634]
[1750901702746,1.72123841,107750.0,107740.0,0.00055634]
[1750901704244,1.72123841,107750.0,107740.0,0.00255634]
[1750901705649,0.87763841,107750.0,107740.0,0.18808964]
[1750901706843,0.87763841,107750.0,107740.0,0.00255634]
[1750901707446,0.87763841,107750.0,107740.0,0.18808964]
[1750901708046,0.87763841,107750.0,107740.0,0.00255634]
[1750901708745,0.87763841,107750.0,107740.0,0.18808964]
[1750901710751,0.87763841,107750.0,107740.0,0.00255634]
[1750901710954,0.90105543,107750.0,107740.0,0.00255634]
[1750901713063,0.90105543,107750.0,107740.0,0.18808964]
[1750901716151,0.90105543,107750.0,107740.0,0.00255634]
[1750901716457,0.90105543,107750.0,107740.0,0.18808964]
[1750901716656,1.69589543,107750.0,107740.0,0.51666522]
[1750901716860,1.67247841,107750.0,107740.0,0.25218964]
[1750901717150,1.69574109,107750.0,107740.0,0.25218964]
[1750901717355,1.67247841,107750.0,107740.0,0.25218964]
[1750901717557,1.60945841,107750.0,107740.0,0.25218964]
[1750901717760,1.60945841,107750.0,107740.0,0.28478964]
[1750901718760,0.78293841,107750.0,107740.0,0.28478964]
[1750901718950,1.60713841,107750.0,107740.0,0.28478964]
[1750901719361,0.78293841,107750.0,107740.0,0.61336522]
[1750901719562,1.60713841,107750.0,107740.0,0.61336522]
[1750901719858,0.78293841,107750.0,107740.0,0.61336522]
[1750901720056,1.60585841,107750.0,107740.0,0.00255634]
[1750901720358,1.67035841,107750.0,107740.0,0.00255634]
[1750901720761,1.67035841,107750.0,107740.0,0.18808964]
[1750901721060,1.67035841,107750.0,107740.0,0.00255634]
[1750901721565,2.0219419,107750.0,107740.0,0.00255634]
[1750901722362,1.69336632,107750.0,107740.0,0.00255634]
[1750901722568,2.0219419,107750.0,107740.0,0.00255634]
[1750901722860,0.1855678,107720.0,107710.0,0.30755985]
[1750901723160,0.91293857,107720.0,107710.0,0.01604418]
[1750901723361,1.00883857,107720.0,107710.0,0.01604418]
[1750901723569,1.33741415,107720.0,107710.0,0.00092838]
[1750901724064,1.36107545,107720.0,107710.0,0.00392838]
[1750901724263,1.33741415,107720.0,107710.0,0.00392838]
[1750901724760,1.33741415,107720.0,107710.0,0.00992838]
[1750901726065,1.33741415,107720.0,107710.0,0.00092838]
[1750901726263,1.33741415,107720.0,107710.0,0.00292838]
[1750901727459,1.00883857,107720.0,107710.0,0.00292838]
[1750901727663,1.82415857,107720.0,107710.0,0.00292838]
[1750901727860,1.00883857,107720.0,107710.0,0.18851338]
[1750901728066,1.82159857,107720.0,107710.0,0.18851338]
[1750901728254,1.82159857,107720.0,107710.0,0.00292838]
[1750901729269,2.15017415,107720.0,107710.0,0.18851338]
[1750901729761,1.82159857,107720.0,107710.0,0.18851338]
[1750901732368,1.82159857,107720.0,107710.0,0.00292838]
[1750901732765,2.15017415,107720.0,107710.0,0.00292838]
[1750901732969,1.82159857,107720.0,107710.0,0.00292838]
[1750901733273,2.14397415,107720.0,107710.0,0.00292838]
[1750901736375,0.1856195,107690.0,107680.0,0.27476025]
[1750901736667,0.8264195,107690.0,107680.0,0.26045285]
[1750901737564,0.8264195,107690.0,107680.0,0.06572863]
[1750901737869,0.8906195,107690.0,107680.0,0.25936533]
[1750901738058,0.8906195,107690.0,107680.0,0.07372863]
[1750901738666,0.8906195,107690.0,107680.0,0.25936533]
[1750901738868,0.8906195,107690.0,107680.0,0.06572863]
[1750901739057,0.8906195,107690.0,107680.0,0.25736533]
[1750901740360,0.8906195,107690.0,107680.0,0.07172863]
[1750901740667,0.8906195,107690.0,107680.0,0.07572863]
[1750901740858,0.8906195,107690.0,107680.0,0.26136533]
[1750901741364,0.8906195,107690.0,107680.0,0.25736533]
[1750901741566,0.8264195,107690.0,107680.0,0.26036533]
[1750901741870,0.8664195,107690.0,107680.0,0.58894091]
[1750901742067,0.8664195,107690.0,107680.0,0.26036533]
[1750901742670,0.6808,107690.0,107680.0,0.58894091]
[1750901742974,0.65577733,107700.0,107690.0,0.1856195]
[1750901743270,1.01577733,107700.0,107690.0,0.60919508]
[1750901743971,1.01577733,107700.0,107690.0,0.2806195]
[1750901744670,1.01577733,107700.0,107690.0,0.2836195]
[1750901749376,1.01577733,107700.0,107690.0,0.2856195]
[1750901750079,0.6892238,107700.0,107690.0,0.62966007]
[1750901750379,1e-07,107700.0,107690.0,2.46687565]
[1750901750568,1e-07,107700.0,107690.0,2.55878216]
[1750901750771,0.01657077,107720.0,107710.0,0.185585]
[1750901751066,0.01619899,107720.0,107710.0,1.82140058]
[1750901751377,0.01619899,107720.0,107710.0,2.50120828]
[1750901751679,0.20176679,107720.0,107710.0,2.09056828]
[1750901751876,0.20176679,107720.0,107710.0,0.3544327]
[1750901752081,0.57256679,107720.0,107710.0,0.68300828]
[1750901752266,0.01,107720.0,107710.0,0.68300828]
[1750901752471,0.011,107720.0,107710.0,0.69858229]
[1750901753277,0.011,107720.0,107710.0,1.05938229]
[1750901753678,1e-07,107720.0,107710.0,1.4877411]
[1750901753877,1e-07,107720.0,107710.0,1.39583459]
[1750901754086,1e-07,107720.0,107710.0,1.52641117]
[1750901754277,1e-07,107720.0,107710.0,2.31977117]
[1750901754476,1e-07,107720.0,107710.0,2.28110372]
[1750901754775,0.1855679,107720.0,107710.0,1.74209164]
[1750901755077,0.5463358,107740.0,107710.0,1.89316239]
[1750901755273,0.6463358,107740.0,107730.0,0.1855505]
[1750901755576,0.6463358,107740.0,107730.0,0.51412608]
[1750901755779,0.6463358,107740.0,107730.0,0.60792608]
[1750901756174,0.6483358,107740.0,107730.0,0.60792608]
[1750901756375,0.4628,107740.0,107730.0,0.60792608]
[1750901756575,0.4628,107740.0,107730.0,1.38996608]
[1750901756781,0.104,107740.0,107730.0,1.92076608]
[1750901757084,1e-08,107750.0,107740.0,0.1855333]
[1750901757376,1e-08,107750.0,107740.0,1.45312862]
[1750901757572,1e-08,107750.0,107740.0,1.63875261]
[1750901758172,0.36076001,107770.0,107760.0,0.1854989]
[1750901758377,0.40076001,107770.0,107760.0,1.3105822]
[1750901758578,0.40076001,107770.0,107760.0,1.7297742]
[1750901758886,0.04,107770.0,107760.0,2.3405742]
[1750901759180,0.01812426,107780.0,107770.0,0.1854816]
[1750901759384,0.69438866,107780.0,107770.0,0.2490816]
[1750901759591,0.1854816,107770.0,107760.0,0.01518772]
[1750901759776,0.8032816,107770.0,107760.0,0.20068652]
[1750901760270,1.0232816,107770.0,107760.0,0.20068652]
[1750901760476,0.4666,107770.0,107760.0,0.20068652]
[1750901760773,0.4666,107770.0,107760.0,0.26419002]
[1750901760774,0.3638,107770.0,107760.0,0.26419002]
[1750901760970,0.3608,107770.0,107760.0,1.5602776]
[1750901761181,0.002,107780.0,107770.0,0.1854816]
[1750901761383,0.032,107780.0,107770.0,0.6398816]
[1750901761688,0.5782644,107780.0,107770.0,0.2790816]
[1750901762079,0.3918,107780.0,107770.0,0.60765718]
[1750901762272,0.3918,107780.0,107770.0,0.2790816]
[1750901762474,0.3918,107780.0,107770.0,0.60765718]
[1750901762678,0.001,107780.0,107770.0,0.96845718]
[1750901764585,0.002,107780.0,107770.0,0.96845718]
[1750901764785,0.1874644,107780.0,107770.0,0.2790816]
[1750901764979,0.5482644,107780.0,107770.0,0.2790816]
[1750901766082,0.002,107780.0,107770.0,0.60765718]
[1750901766786,0.1874644,107780.0,107770.0,0.60765718]
[1750901767175,0.1874644,107780.0,107770.0,0.6826023]
[1750901767375,0.1854819,107770.0,107760.0,0.29332442]
[1750901767575,0.2171819,107770.0,107760.0,0.6219]
[1750901767983,0.2171819,107770.0,107760.0,0.6845]
[1750901768190,0.00683553,107840.0,107790.0,0.3608]
[1750901768388,0.01661071,107860.0,107850.0,0.1853443]
[1750901768688,0.01661071,107860.0,107850.0,2.0673443]
[1750901768984,0.01661071,107860.0,107850.0,2.89992745]
[1750901769293,1e-08,107860.0,107850.0,3.13921856]
[1750901769482,0.003,107860.0,107850.0,3.13921856]
[1750901769684,0.00096,107870.0,107860.0,0.1853271]
[1750901769988,0.00096,107870.0,107860.0,1.07532513]
[1750901770181,0.00096,107870.0,107860.0,1.44532513]
[1750901770388,0.006,107900.0,107890.0,0.1852756]
[1750901770687,0.026,107900.0,107890.0,2.04221203]
[1750901771191,0.006,107900.0,107890.0,1.89900445]
[1750901771389,0.006,107900.0,107890.0,2.22758003]
[1750901771580,0.006,107900.0,107890.0,1.96140445]
[1750901771885,0.011,107900.0,107890.0,2.28998003]
[1750901772078,0.011,107900.0,107890.0,1.96140445]
[1750901772284,0.009,107900.0,107890.0,2.22279681]
[1750901772485,0.25594363,107930.0,107920.0,0.1852241]
[1750901772687,0.59594243,107930.0,107920.0,0.9068241]
[1750901772883,0.59594243,107930.0,107920.0,0.7518]
[1750901773083,0.59594243,107930.0,107920.0,1.19841646]
[1750901773286,0.00683553,107930.0,107920.0,1.27197219]
[1750901773594,0.56204243,107930.0,107920.0,0.98037983]
[1750901773892,0.43973553,107930.0,107920.0,2.03145219]
[1750901774090,0.43973553,107930.0,107920.0,2.06375219]
[1750901774287,0.43973553,107930.0,107920.0,1.27407219]
[1750901774587,0.07073553,107930.0,107920.0,2.06259219]
[1750901774787,0.03923553,107930.0,107920.0,2.06259219]
[1750901775180,0.07073553,107930.0,107920.0,1.80119983]
[1750901775381,0.07073553,107930.0,107920.0,2.06259219]
[1750901775786,0.25594243,107930.0,107920.0,1.01267983]
[1750901775982,0.13073553,107930.0,107920.0,1.76861983]
[1750901776385,0.13073553,107930.0,107920.0,1.80171983]
[1750901776794,0.07073553,107930.0,107920.0,1.80171983]
[1750901777088,0.07073553,107930.0,107920.0,1.01347983]
[1750901777291,0.60594243,107930.0,107920.0,0.07355573]
[1750901777495,0.60594243,107930.0,107920.0,0.1852241]
[1750901777691,0.1852241,107920.0,107910.0,1.44121706]
[1750901777896,0.4015,107920.0,107910.0,1.44121706]
[1750901778091,0.5867241,107920.0,107910.0,0.65385706]
[1750901778393,0.3467241,107920.0,107910.0,0.65385706]
[1750901778596,0.5867241,107920.0,107910.0,0.65385706]
[1750901778891,0.5867241,107920.0,107910.0,0.37700896]
[1750901779487,0.4015,107920.0,107910.0,0.56225026]
[1750901779690,0.5867241,107920.0,107910.0,0.56225026]
[1750901780397,0.5867241,107920.0,107910.0,0.56425026]
[1750901780789,0.5867241,107920.0,107910.0,0.64016743]
[1750901781590,0.0915,107920.0,107910.0,0.56425026]
[1750901781797,0.00683553,107930.0,107910.0,0.51793326]
[1750901781992,0.04683553,107930.0,107920.0,1.3330641]
[1750901782193,0.04683553,107930.0,107920.0,1.65935646]
[1750901782394,0.02000003,107930.0,107920.0,1.84466846]
[1750901782686,3e-08,107930.0,107920.0,2.10466846]
[1750901783094,3e-08,107930.0,107920.0,2.46466846]
[1750901783391,3e-08,107930.0,107920.0,2.11939646]
[1750901783586,3e-08,107930.0,107920.0,2.30470846]
[1750901783988,0.2170742,107950.0,107940.0,0.20037874]
[1750901783989,0.0005,107950.0,107940.0,0.20037874]
[1750901784188,0.0205,107950.0,107940.0,2.0008911]
[1750901784384,0.5156726,107950.0,107940.0,0.73678894]
[1750901784589,0.5156726,107950.0,107910.0,0.44868662]
[1750901784590,1.49886586,107950.0,107910.0,0.44868662]
[1750901784786,0.20188522,107920.0,107910.0,0.07267766]
[1750901784989,0.20188522,107920.0,107900.0,0.5460495]
[1750901784990,0.1852413,107910.0,107900.0,0.5923524]
[1750901785186,0.4606413,107910.0,107900.0,0.5923524]
[1750901785595,0.2754,107910.0,107900.0,0.85374476]
[1750901785798,0.2174254,107920.0,107910.0,0.1852413]
[1750901785998,0.3106254,107920.0,107910.0,1.3303613]
[1750901786503,0.3106254,107920.0,107910.0,1.40495025]
[1750901786992,0.2506254,107920.0,107910.0,0.62063025]
[1750901787200,0.5906254,107920.0,107910.0,1.40371025]
[1750901787404,0.4106254,107920.0,107910.0,0.63603564]
[1750901788098,0.6006254,107920.0,107910.0,0.63603564]
[1750901788401,0.6006254,107920.0,107910.0,0.63703564]
[1750901788701,0.2606254,107920.0,107910.0,0.63703564]
[1750901789197,0.0754,107920.0,107910.0,0.56444669]
[1750901789703,0.2606241,107920.0,107910.0,0.56544669]
[1750901789905,0.4454,107920.0,107910.0,0.56544669]
[1750901790100,0.0654,107920.0,107910.0,0.56744669]
[1750901790403,0.4054,107920.0,107910.0,0.56744669]
[1750901790594,0.2606241,107920.0,107910.0,0.56744669]
[1750901790791,0.2606241,107920.0,107910.0,0.38220539]
[1750901791096,0.2506241,107920.0,107910.0,0.38220539]
[1750901791297,1.24644305,107920.0,107910.0,0.02140539]
[1750901791502,1.35752545,107920.0,107890.0,1.43490578]
[1750901791703,0.1852584,107900.0,107890.0,1.43490578]
[1750901791895,0.5152584,107900.0,107890.0,1.43490578]
[1750901792095,0.0617,107900.0,107890.0,0.65482578]
[1750901792290,0.27061701,107900.0,107890.0,0.65482578]
[1750901792502,0.58061701,107900.0,107890.0,0.65482578]
[1750901792690,0.61061701,107900.0,107890.0,0.65782578]
[1750901792895,0.61061701,107900.0,107890.0,0.56519068]
[1750901793096,0.9714184,107900.0,107890.0,0.02212768]
[1750901794098,1.23281076,107900.0,107890.0,0.01912768]
[1750901794298,1.29773784,107900.0,107890.0,0.00592683]
[1750901794497,1.29773784,107900.0,107870.0,0.5460971]
[1750901794498,0.1852928,107880.0,107870.0,0.5460971]
[1750901794807,0.18531,107870.0,107860.0,0.00092708]
[1750901795000,1.25888944,107870.0,107860.0,0.18625418]
[1750901795193,0.38646,107870.0,107860.0,0.18625418]
[1750901795506,0.38646,107870.0,107860.0,0.54705418]
[1750901795507,0.5717699,107870.0,107860.0,0.54705418]
[1750901796006,1.69430534,107870.0,107860.0,0.00392708]
[1750901796304,0.1853615,107840.0,107830.0,0.18630454]
[1750901796505,0.5890215,107840.0,107830.0,0.18630454]
[1750901796697,0.43646,107840.0,107830.0,0.54710454]
[1750901796898,0.02366,107840.0,107830.0,0.80902361]
[1750901797099,0.0170297,107850.0,107840.0,0.1853615]
[1750901797304,0.0328,107860.0,107850.0,0.1853443]
[1750901797599,0.11688818,107860.0,107850.0,0.87066337]
[1750901797803,0.11688818,107860.0,107850.0,0.83956337]
[1750901797996,0.11688818,107860.0,107850.0,0.5776443]
[1750901798302,0.11688818,107860.0,107850.0,0.83956337]
[1750901798602,0.01688818,107860.0,107850.0,0.87066337]
[1750901799003,0.01688818,107860.0,107850.0,0.87266337]
[1750901799204,0.01688818,107860.0,107850.0,0.87366337]
[1750901799403,0.02688818,107860.0,107850.0,0.87366337]
[1750901800805,0.02688818,107860.0,107850.0,1.05909536]
[1750901801117,0.0812566,107880.0,107870.0,0.1853099]
[1750901801118,0.0647,107880.0,107870.0,0.1853099]
[1750901801408,0.0323,107890.0,107880.0,0.1852928]
[1750901801610,0.4147,107890.0,107880.0,0.80801187]
[1750901801805,0.4147,107890.0,107880.0,0.5460928]
[1750901802202,0.0647,107890.0,107880.0,0.5460928]
[1750901802402,0.0947,107890.0,107880.0,0.87301187]
[1750901802610,0.0947,107890.0,107880.0,0.5785928]
[1750901803300,0.2799756,107890.0,107880.0,0.5785928]
[1750901803501,0.0947,107890.0,107880.0,0.5785928]
[1750901803803,0.0977,107890.0,107880.0,0.5785928]
[1750901804004,0.2829756,107890.0,107880.0,0.5460928]
[1750901804207,0.1852927,107880.0,107870.0,0.8374083]
[1750901804411,0.5773927,107880.0,107870.0,0.8374083]
[1750901804606,0.6094927,107880.0,107870.0,0.5461083]
[1750901805003,0.6094927,107880.0,107870.0,0.3608]
[1750901805206,0.6400927,107880.0,107870.0,0.3608]
[1750901805503,0.6400927,107880.0,107870.0,0.54611]
[1750901805709,0.6410927,107880.0,107870.0,0.54611]
[1750901805913,0.6430927,107880.0,107870.0,0.54611]
[1750901806509,0.4530928,107880.0,107870.0,0.54611]
[1750901807502,0.47014352,107880.0,107870.0,0.54611]
[1750901807907,0.68014352,107880.0,107870.0,0.54611]
[1750901808912,0.2072,107880.0,107870.0,0.54611]
[1750901809103,0.2072,107880.0,107870.0,0.80802907]
[1750901809306,0.1751,107880.0,107870.0,0.87082907]
[1750901809511,0.1751,107880.0,107870.0,1.65122907]
[1750901809907,0.143,107880.0,107870.0,1.65122907]
[1750901810508,0.143,107880.0,107870.0,1.94442907]
[1750901810708,0.003,107880.0,107870.0,1.90442907]
[1750901810910,0.003,107880.0,107870.0,2.08982907]
[1750901811613,0.003,107880.0,107870.0,1.90442907]
[1750901811816,0.003,107880.0,107870.0,1.96442907]
[1750901812717,0.003,107880.0,107870.0,1.96310907]
[1750901814413,0.003,107880.0,107870.0,2.14850907]
[1750901814614,0.01785273,107900.0,107890.0,0.1852756]
[1750901814810,0.011,107900.0,107890.0,1.95841093]
[1750901815010,0.011,107900.0,107890.0,2.02161093]
[1750901815212,0.011,107900.0,107890.0,1.24753093]
[1750901815213,0.1962584,107900.0,107890.0,1.24753093]
[1750901815417,0.20908288,107900.0,107890.0,0.3608]
[1750901815714,0.29913023,107900.0,107890.0,0.35524999]
[1750901815919,0.1852756,107890.0,107880.0,1.4131188]
[1750901816130,0.64170008,107890.0,107880.0,0.6387188]
[1750901816717,0.1852927,107880.0,107870.0,0.37633626]
[1750901816919,0.1853099,107870.0,107860.0,0.6521]
[1750901817124,0.65433438,107870.0,107860.0,0.8374271]
[1750901817315,0.33433438,107870.0,107860.0,1.16366903]
[1750901817512,0.68433438,107870.0,107860.0,1.16366903]
[1750901817716,0.68433438,107870.0,107860.0,0.8374271]
[1750901818024,0.68433438,107870.0,107840.0,0.37575806]
[1750901818025,0.90615428,107870.0,107840.0,0.37575806]
[1750901818324,0.1853615,107840.0,107830.0,0.00092734]
[1750901818527,1.52838791,107840.0,107830.0,0.00092734]
[1750901818713,1.62048791,107840.0,107830.0,0.00092734]
[1750901819320,2.05595991,107840.0,107830.0,0.00092734]
[1750901819618,2.05595991,107840.0,107830.0,0.00292734]
[1750901820234,2.06700598,107840.0,107830.0,0.00292734]
[1750901820422,2.06700598,107840.0,107830.0,0.00392734]
[1750901820624,0.046345,107830.0,107800.0,0.3617276]
[1750901820818,0.5462131,107810.0,107800.0,0.1863579]
[1750901821029,0.77143758,107810.0,107800.0,0.1863579]
[1750901821327,0.80143758,107810.0,107800.0,0.5471579]
[1750901821725,0.80143758,107810.0,107800.0,0.3667276]
[1750901822031,2.27736315,107810.0,107800.0,0.0059276]
[1750901822226,0.1854475,107790.0,107780.0,0.5926307]
[1750901822428,0.5354475,107790.0,107780.0,0.5926307]
[1750901822731,0.5354475,107790.0,107770.0,0.60862751]
[1750901822732,0.1854647,107780.0,107770.0,0.60862751]
[1750901822933,0.5286647,107780.0,107770.0,0.60862751]
[1750901823132,0.0332,107780.0,107770.0,0.60862751]
[1750901823434,0.3932,107780.0,107770.0,0.60862751]
[1750901823632,0.0332,107780.0,107770.0,0.93486944]
[1750901824127,0.0332,107780.0,107770.0,0.99706944]
[1750901824427,0.0332,107780.0,107770.0,0.9328932]
[1750901825431,0.0332,107780.0,107770.0,0.9348932]
[1750901825627,0.04978364,107810.0,107800.0,0.1854303]
[1750901825832,0.61749674,107810.0,107800.0,0.5462303]
[1750901826332,1.64001674,107810.0,107800.0,0.5462303]
[1750901826846,1.63997674,107810.0,107800.0,0.5462303]
[1750901827131,1.67077674,107810.0,107800.0,0.5462303]
[1750901827337,0.43018364,107810.0,107800.0,0.80829599]
[1750901827520,0.31559674,107810.0,107800.0,0.80829599]
[1750901827727,0.31559674,107810.0,107800.0,0.5462303]
[1750901827925,0.32159674,107810.0,107800.0,0.5472303]
[1750901828233,0.64159674,107810.0,107800.0,0.5472303]
[1750901828431,0.32159674,107810.0,107800.0,0.5472303]
[1750901828730,0.32159674,107810.0,107800.0,0.80929599]
[1750901828731,0.02308364,107810.0,107800.0,0.80929599]
[1750901828933,0.02308364,107810.0,107800.0,0.87219599]
[1750901830025,0.02308364,107810.0,107800.0,1.64035599]
[1750901830635,0.02308364,107810.0,107800.0,1.3782903]
[1750901830830,0.02308364,107810.0,107800.0,1.97035599]
[1750901831137,0.02308364,107810.0,107800.0,1.64035599]
[1750901832335,0.02308364,107810.0,107800.0,1.96035599]
[1750901832634,0.02308364,107810.0,107800.0,1.3782903]
[1750901832835,0.02308364,107810.0,107800.0,1.64035599]
[1750901833230,0.006,107810.0,107800.0,2.02035599]
[1750901833534,0.006,107810.0,107800.0,1.64035599]
[1750901834735,0.006,107810.0,107800.0,2.00035599]
[1750901835235,0.006,107810.0,107800.0,1.64035599]
[1750901835730,0.5314132,107810.0,107800.0,0.5472304]
[1750901836033,0.5948132,107810.0,107800.0,0.5472304]
[1750901836435,0.5948132,107810.0,107800.0,0.001]
[1750901836733,0.3748132,107810.0,107800.0,0.5472304]
[1750901836939,0.5848132,107810.0,107800.0,0.5472304]
[1750901838832,0.5848132,107810.0,107800.0,0.001]
[1750901839133,0.1854304,107800.0,107790.0,0.3760629]
[1750901839333,0.6283304,107800.0,107790.0,0.3760629]
[1750901840336,0.6283304,107800.0,107790.0,0.3770629]
[1750901840542,0.6293304,107800.0,107790.0,0.3770629]
[1750901840839,0.6293304,107800.0,107790.0,0.0162629]
[1750901841038,0.6293304,107800.0,107790.0,0.1864475]
[1750901841239,0.64591822,107800.0,107790.0,0.001]
[1750901841433,0.64591822,107800.0,107790.0,0.1864476]
[1750901841737,0.64991822,107800.0,107790.0,0.3618]
[1750901841936,0.65191822,107800.0,107790.0,0.001]
[1750901843531,0.1854476,107790.0,107780.0,0.3608]
[1750901843738,0.1854648,107780.0,107770.0,0.37678961]
[1750901843933,0.6281648,107780.0,107770.0,0.37678961]
[1750901844240,0.6281648,107780.0,107770.0,0.56227161]
[1750901844827,0.2481648,107780.0,107770.0,0.56227161]
[1750901845037,0.6181648,107780.0,107770.0,0.56227161]
[1750901845239,0.3381648,107780.0,107770.0,0.56227161]
[1750901845440,0.6001648,107780.0,107770.0,0.37678961]
[1750901845635,0.2901648,107780.0,107770.0,0.20147161]
[1750901845939,0.5701648,107780.0,107770.0,0.56227161]
[1750901846537,0.5701648,107780.0,107770.0,0.56327161]
[1750901848742,0.5701648,107780.0,107770.0,0.47797161]
[1750901849336,1.3246448,107780.0,107770.0,0.47797161]
[1750901849942,1.6854448,107780.0,107770.0,0.001]
[1750901850441,0.2174648,107780.0,107770.0,0.547282]
[1750901850632,0.2633648,107780.0,107770.0,0.547282]
[1750901850836,0.5933648,107780.0,107770.0,0.547282]
[1750901851037,1.29111836,107780.0,107770.0,0.001]
[1750901851238,2.04511836,107780.0,107770.0,0.001]
[1750901851445,1.7181648,107780.0,107770.0,0.186482]
[1750901851837,1.7181648,107780.0,107770.0,0.001]
[1750901852043,2.04511836,107780.0,107770.0,0.001]
[1750901852342,0.1854992,107760.0,107750.0,0.5926794]
[1750901852643,0.20214639,107760.0,107750.0,0.1855164]
[1750901852843,0.1855164,107750.0,107740.0,0.70177029]
[1750901853044,0.2286164,107750.0,107740.0,0.56263189]
[1750901853233,0.5586164,107750.0,107740.0,0.37709829]
[1750901853437,0.5586164,107750.0,107740.0,0.56263189]
[1750901854344,0.5586164,107750.0,107740.0,0.56463189]
[1750901855440,0.5897164,107750.0,107740.0,0.56463189]
[1750901856240,0.2497164,107750.0,107740.0,0.56463189]
[1750901856544,0.6297164,107750.0,107740.0,0.56463189]
[1750901856746,0.3697164,107750.0,107740.0,0.56463189]
[1750901857045,0.3697164,107750.0,107740.0,0.89158545]
[1750901857245,0.3697164,107750.0,107740.0,0.56463189]
[1750901859536,0.5997164,107750.0,107740.0,0.56463189]
[1750901859736,0.2497164,107750.0,107740.0,0.56463189]
[1750901859947,0.2697164,107750.0,107740.0,0.56463189]
[1750901860344,0.2697164,107750.0,107740.0,0.89158545]
[1750901860345,0.02,107750.0,107740.0,0.89158545]
[1750901860549,0.02,107750.0,107740.0,1.73926545]
[1750901861045,0.02,107750.0,107740.0,0.65783189]
[1750901861244,0.02,107750.0,107740.0,0.98478545]
[1750901861951,0.01664719,107760.0,107750.0,0.1855164]
[1750901862148,0.01664719,107760.0,107750.0,1.31746996]
[1750901862349,0.01664719,107760.0,107750.0,1.69094996]
[1750901863250,0.01664719,107760.0,107750.0,1.69194996]
[1750901863750,0.01664719,107760.0,107750.0,0.93846996]
[1750901863949,0.01664719,107760.0,107750.0,1.68970996]
[1750901864152,0.01664719,107760.0,107750.0,1.69170996]
[1750901864641,0.01764719,107760.0,107750.0,1.69170996]
[1750901864841,0.20314639,107760.0,107750.0,1.69054996]
[1750901865250,0.20214639,107760.0,107750.0,1.74620045]
[1750901865849,0.01664719,107760.0,107750.0,1.74620045]
[1750901866042,0.01664719,107760.0,107750.0,0.99512045]
[1750901866248,0.01664719,107760.0,107750.0,1.74436045]
[1750901867351,0.52214639,107760.0,107750.0,1.41684689]
[1750901867645,0.52214639,107760.0,107750.0,0.63686689]
[1750901867646,0.58374639,107760.0,107750.0,0.63686689]
[1750901867954,0.63374639,107760.0,107750.0,0.5493164]
[1750901868247,0.63374639,107760.0,107750.0,0.60296689]
[1750901868444,0.26474639,107760.0,107750.0,0.60296689]
[1750901868640,0.26474639,107760.0,107750.0,0.92992045]
[1750901868841,0.26474639,107760.0,107750.0,0.99422045]
[1750901869452,0.26474639,107760.0,107750.0,0.66726689]
[1750901869649,0.26474639,107760.0,107750.0,0.66626689]
[1750901870548,0.61474639,107760.0,107750.0,0.60196689]
[1750901870749,0.34474639,107760.0,107750.0,0.60196689]
[1750901870950,0.58474639,107760.0,107750.0,0.60196689]
[1750901871150,0.60474639,107760.0,107750.0,0.60196689]
[1750901872347,0.98554639,107760.0,107750.0,0.001]
[1750901872551,1.34519995,107760.0,107750.0,0.001]
[1750901873244,2.32739995,107760.0,107750.0,0.001]
[1750901874046,0.046383,107750.0,107720.0,0.05465049]
[1750901874251,0.1855681,107720.0,107710.0,0.18651368]
[1750901874445,0.34,107720.0,107710.0,0.1861419]